Cogmind - Beta 15 @@@ ROGUE MODE // 2025.07.03 @ 23:26:52 Player: Khoroshiy Result: Destroyed by G-34 Mercenary with Small Laser Performance ------------- Evolutions (0) 0 Regions Visited (1) 200 Robots Destroyed (12) 60 Value Destroyed (321) 321 Prototype IDs (0) 0 Alien Tech Used (0) 0 Bonus (0) 0 TOTAL SCORE: 581 Bonus ------- None Cogmind --------- Core Integrity 0/250 Matter 297/300 Energy 250/250 System Corruption 0% Temperature Cool (12) Movement Walking (120) Location -10/Materials Parts ------- > --- POWER (1) -------- Ion Engine > --- PROPULSION (2) --- Aluminum Leg Aluminum Leg > --- UTILITY (2) ------ (None) > --- WEAPON (2) ------- (None) > --- INVENTORY (5) ---- Light Ion Engine Aluminum Leg Aluminum Leg Flight Unit Peak State ------------ > --- POWER ------------ Light Ion Engine > --- PROPULSION ------- Aluminum Leg Aluminum Leg > --- UTILITY ---------- (None) > --- WEAPON ----------- Medium Laser Small Laser > --- INVENTORY -------- (None) [Rating: 5] Favorites ----------- Power Light Ion Engine Engine Light Ion Engine Propulsion Aluminum Leg Leg Aluminum Leg Hover Unit Hover Unit Flight Unit Flight Unit Utility None Weapon Small Laser Energy Gun Small Laser Build | -11 -10 ------- Run | Yrd Mat Slots Evolved . | . . Power . | . . Propulsion . | . . Utility . | . . Weapon . | . . Parts Attached 15 | 5 10 Power 2 | 1 1 Engine 2 | 1 1 Core . | . . Reactor . | . . Propulsion 10 | 2 8 Treads . | . . Leg 6 | 2 4 Wheel . | . . Hover 2 | . 2 Flight 2 | . 2 Utility . | . . Device . | . . Storage . | . . Processor . | . . Hackware . | . . Protection . | . . Artifact . | . . Weapon 3 | 2 1 Energy Gun 3 | 2 1 Energy Cannon . | . . Ballistic Gun . | . . Ballistic Cannon . | . . Launcher . | . . Special Weapon . | . . Impact Weapon . | . . Slashing Weapon . | . . Piercing Weapon . | . . Special Melee Weapon . | . . Unidentified Prototypes . | . . Parts Lost 7 | . 7 Power 1 | . 1 Propulsion 3 | . 3 Utility . | . . Weapon 3 | . 3 Highest Loss Streak 3 | . 3 To Critical Strikes . | . . Average Backups 3 | . 3 Power . | . . Propulsion 2 | . 3 Utility . | . . Weapon . | . . Tool/Special . | . . Unused Backups 1 | . 1 Power 1 | . 1 Propulsion . | . . Utility . | . . Weapon . | . . Tool/Special . | . . Average Slot Usage (%) 66 | . 66 Engine 13 | . 13 Leg 12 | . 12 Hover 1 | . 1 Flight 12 | . 12 Energy Gun 25 | . 25 Peak Build Rating 5 | 5 5 Average Rating 4 | 3 4 On Entrance 2 | . 5 Naked Turns . | . . Heaviest Build 8 | 6 8 Greatest Support 20 | 20 20 Greatest Overweight (x) 1 | . 1 Average Overweight (x) . | . . Largest Inventory Capacity 5 | 5 5 Average Capacity 5 | 5 5 Most Carried 5 | . 5 Average Carried 3 | . 3 Final Capacity 5 | 5 5 Final Carried 4 | . 4 Class Distribution -------------------- 93% | Mutant 6% | Scavenger-Mutant Dominant Class ---------------- Mutant | -10/Materials Resources | -11 -10 ----------- Run | Yrd Mat Matter Collected 340 | 236 104 Remotely . | . . Salvage Created 455 | 36 419 Parts 14 | . 14 Haulers Intercepted . | . . Recyclers Shooed . | . . Parts Field Recycled . | . . Retrieved Matter . | . . Parts Self-Destructed . | . . Prevented . | . . Kills | -11 -10 ------- Run | Yrd Mat Combat Hostiles Destroyed 11 | 1 10 Guns 10 | 1 9 Classes Destroyed 3 | 1 2 Recycler 1 | . 1 Swarmer 3 | . 3 Grunt 8 | 1 7 Best Kill Streak 3 | 1 3 Combat Bots Only 3 | 1 3 Max Kills in Single Turn 1 | 1 1 Gunslinging . | . . Exploded . | . . Melee . | . . Uniques/NPCs Destroyed . | . . Combat | -11 -10 -------- Run | Yrd Mat Hostile Shots Fired 104 | 6 98 Missed 31 | 1 30 Hits 73 | 5 68 Projectile 73 | 5 68 Critical Strikes 1 | . 1 Damage Taken 832 | 58 774 Core 251 | 12 239 Absorbed by Shields . | . . Core Remaining (%) 95 | 95 . Volleys Fired 68 | 4 64 Largest 2 | 2 2 Hottest 90 | 90 90 Shots Fired 114 | 8 106 Gun 114 | 8 106 Cannon . | . . Launcher . | . . Special . | . . Kinetic . | . . Thermal 114 | 8 106 Explosive . | . . Electromagnetic . | . . Robot Hit Streak 21 | 6 21 Robot Miss Streak 3 | 1 3 Penetration Max . | . . Secondary Targets 1 | . 1 Max Gunslinging Chain 1 | . 1 Shots Hit Robots 74 | 7 67 Core Hits 26 | 2 24 Critical Kills . | . . Critical Parts Destroyed . | . . Critical Strikes 1 | . 1 Burn 1 | . 1 Melee Attacks . | . . Impact . | . . Slashing . | . . Piercing . | . . Sneak Attacks . | . . Combat Hostiles . | . . Follow-up Attacks . | . . Damage Inflicted 873 | 83 790 Guns 861 | 83 778 Cannons . | . . Explosions . | . . Melee . | . . Ramming 12 | . 12 Kinetic . | . . Thermal 861 | 83 778 Explosive . | . . Electromagnetic . | . . Impact . | . . Slashing . | . . Piercing . | . . Highest Corruption . | . . Average Corruption . | . . Corruption Purged . | . . Corruption Blocked . | . . Overload Shots . | . . Overflow Damage . | . . Projectiles . | . . Explosions . | . . Melee . | . . Knockbacks 1 | . 1 Impact 1 | . 1 Kinetic . | . . Secondary . | . . Self-Inflicted Damage . | . . Shots . | . . Rammed . | . . Targets Rammed 5 | . 5 Kicked 5 | . 5 Crushed . | . . Highest Temperature 364 | 132 364 Average Temperature 133 | 72 137 Received Heat Transfer 444 | 30 414 Effects 2 | . 2 Energy Bleed 1 | . 1 Interference 1 | . 1 Siege Activations . | . . Martial Activations . | . . Shielding Activations . | . . Robots Disrupted . | . . Combat Hostiles . | . . Robots Corrupted . | . . Combat Hostiles . | . . Parts Fried . | . . Impact Corruptions . | . . Robots Melted 1 | . 1 Combat Hostiles 1 | . 1 Parts Melted 9 | 3 6 Heat Transferred 2272 | 223 2049 Parts Sabotaged . | . . Parts Stolen . | . . Parts Stripped . | . . Power Chain Reactions . | . . Alert | -11 -10 ------- Run | Yrd Mat Maximum Alert Level . | . . Low Security (%) 100 | 100 100 Level 1 . | . . Level 2 . | . . Level 3 . | . . Level 4 . | . . Level 5 . | . . High Security . | . . Max Security . | . . Peak Influence 68 | 20 68 Initial 13 | . 13 Average 24 | 1 27 Influence Increases 305 | 20 285 Destroy 0b10 Robot/C 220 | 20 200 Destroy 0b10 Robot/NC 5 | . 5 Destroy Leader 50 | . 50 Lose Combat Pursuer 30 | . 30 Influence Decreases 285 | . 285 Entered New Map 7 | . 7 Time Decay 216 | . 216 Lost Part 62 | . 62 Squads Dispatched 4 | . 4 Investigation 2 | . 2 Extermination . | . . Reinforcement 2 | . 2 Assault . | . . Garrison . | . . Intercept . | . . Searches Triggered . | . . Construction Impeded . | . . Haulers Reinforced . | . . Active Scanning Responses . | . . Cargo Convoy Interrupts . | . . Stealth | -11 -10 --------- Run | Yrd Mat Distress Signals . | . . Communications Jammed . | . . Distress Signals . | . . Times Spotted 20 | 1 19 Peak Tracking Total 6 | 1 6 Tactical Retreats 1 | . 1 Traps | -11 -10 ------- Run | Yrd Mat Traps Triggered 1 | . 1 Indirectly . | . . Trap Hack Attempts . | . . Triggered . | . . Disarmed . | . . Reprogrammed . | . . Reused . | . . Traps Extracted . | . . Installed . | . . Triggered . | . . Machines | -11 -10 ---------- Run | Yrd Mat Machines Disabled . | . . Max in Single Turn . | . . Machines Repaired . | . . Machines Dismantled . | . . Machines Sabotaged . | . . Overloaded Fab Kills . | . . Hacking | -11 -10 --------- Run | Yrd Mat Machines Accessed 1 | . 1 Terminals 1 | . 1 Fabricators . | . . Repair Stations . | . . Recycling Units . | . . Scanalyzers . | . . Garrison Access . | . . Total Hacks 3 | . 3 Successful 1 | . 1 Failed 2 | . 2 Catastrophic . | . . Database Lockouts . | . . Manual 1 | . 1 Terminals 3 | . 3 Fabricators . | . . Repair Stations . | . . Recycling Units . | . . Scanalyzers . | . . Garrison Access . | . . Terminal Hacks 1 | . 1 Zone Layout 1 | . 1 Fabricator Hacks . | . . Repair Station Hacks . | . . Recycling Unit Hacks . | . . Scanalyzer . | . . Garrison Access Hacks . | . . Unauthorized Hacks . | . . Terminals . | . . Fabricators . | . . Repair Stations . | . . Recycling Units . | . . Scanalyzers . | . . Garrison Access . | . . Data Cores Recovered . | . . Used . | . . Hacking Detections 1 | . 1 Full Trace Events 1 | . 1 Feedback Events . | . . Feedback Blocked . | . . Robot Schematics Acquired . | . . Robots Built . | . . Authchips . | . . Time . | . . Total Robot Build Rating . | . . Part Schematics Acquired . | . . Parts Built . | . . Authchips . | . . Time . | . . Total Part Build Rating . | . . Parts Repaired . | . . Time . | . . Parts Recycled . | . . Recycled Matter . | . . Retrieved Matter . | . . Retrieved Components . | . . Parts Scanalyzed . | . . Part Schematics Acquired . | . . Parts Damaged . | . . Bothacking | -11 -10 ------------ Run | Yrd Mat Used RIF Installer . | . . Robots Hacked . | . . Non-combat . | . . Combat . | . . Robot Hacks Applied . | . . Relay Couplers Released . | . . Fabnet Peak Effective % . | . . Robots Rewired . | . . Allies Hacked . | . . Hacks Repelled . | . . Allies | -11 -10 -------- Run | Yrd Mat Total Allies . | . . Largest Group . | . . Highest-Rated Group . | . . Highest-Rated Ally . | . . Total Orders . | . . Ally Attacks . | . . Total Damage . | . . Kills . | . . Allies Corrupted . | . . Allies Melted . | . . Intel | -11 -10 ------- Run | Yrd Mat Active Infowar (turns) . | . . Robot Analysis Total . | . . Derelict Logs Recovered . | . . Drone Launches . | . . Drone Recoveries . | . . Exploration | -11 -10 ------------- Run | Yrd Mat Turns Passed 712 | 76 636 Spaces Moved 483 | 55 428 Core 14 | 13 1 Treads . | . . Legs 214 | 42 172 Wheels . | . . Hover 39 | . 39 Flight 216 | . 216 Fastest Speed 37 | 50 37 Average Speed 75 | 103 72 Slowest Speed 120 | 120 120 Overloaded Moves . | . . Propulsion Burnouts . | . . Robots Hopped 3 | . 3 Potential Cave-ins . | . . Cave-ins Triggered . | . . Exploration Rate (%) 31 | 5 57 Regions Visited 1 Branch Regions . Pre-discovered Areas . | . . Known Exits Taken . | . . Unknown Exits Taken 1 | 1 . Scrap Searched . | . . Spaces Dug . | . . Terrain Destroyed . | . . Melee . | . . Projectile . | . . AOE . | . . Terrain Rammed . | . . Walls Destroyed . | . . Machines Disabled . | . . Actions | -11 -10 --------- Run | Yrd Mat Total 704 | 63 641 Wait 127 | . 127 Move 476 | 54 422 Hop 3 | . 3 Pick Up 5 | . 5 Fast Attach 9 | 5 4 Attach 1 | . 1 Detach . | . . Swap 8 | . 8 Drop 2 | . 2 Fire 68 | 4 64 Melee . | . . Ram . | . . Kick 5 | . 5 Crush . | . . Escape Stasis . | . . Rewire . | . . Trap . | . . Miscellaneous . | . . Route ------- -11/Scrapyard -10/Materials (discovered 2 exits: [*Mat x2]) History --------- Turn | Location | Event 2 | -11/Scrapyard | Met Revision 17 52 | -11/Scrapyard | Discovered new exit (range 8) 77 | -11/Scrapyard | Entered Materials 119 | -10/Materials | Discovered new exit (range 10) 235 | -10/Materials | Discovered new exit (range 16) 300 | -10/Materials | Build established: Mutant 566 | -10/Materials | Core integrity fell below 50% 696 | -10/Materials | Core integrity fell below 20% 713 | -10/Materials | Destroyed by G-34 Mercenary with Small Laser Last Messages --------------- Connecting with Repair Station... Critical hit (Burn: +37). Hover Unit destroyed. K-01 Serf collects debris. G-47 Trooper heat short circuits Aluminum Leg. G-47 Trooper heat damages Broken Aluminum Leg, Particle Gun, Imp. Heat Sink. Imp. Heat Sink melted. G-47 Trooper destroyed. K-01 Serf collects debris. Acquired Aluminum Leg. K-01 Serf collects debris. Sml. Laser destroyed. Kicked G-34 Mercenary. Kicked G-34 Mercenary out of the way. G-34 Mercenary knocked back. Kicked G-34 Mercenary out of the way. Kicked G-34 Mercenary. K-01 Serf collects debris. Kicked G-34 Mercenary. Map ----- +----------------------------------------------------+ | ?????????# #########???# #????????# #?? | | ?????????# ############# #????????# #?? | | ########## #????????# #?? | | #????????# #?? | | % ############ #????????# !#?? | | ## "" """ # """"" #?# #????????# #?? | | ## "T """ # ""T"" #?# ########?# ## | | + "" """ # #?# # ### # | | # # #?# # + + | | # % %+% #?# # = ### # | | #####+## #* """ #?# + == #?# # | | ## [###### """ #?# # == #?# #? | | ## = #????# """ #?# # #?# #? | | ### #????# #?# ########?# !! #? | | ??# #????##########?# #????##### !! #? | | ??# #???????????????# #?? ## #? | | ??####################### # "" ## #? | | ?????# |r Y" ## /!! #? | | ?????# %# "" ## /! #? | | ?????# !!#?? ## !! #? | | ?????# ############ #????##### ## | | ?????# #??######### g #????????# | | ????????????????# # #????????# | | ????????????????# #gg #????????# | | ????????????????# " "" +%m #????????###########+# | | ????????????????# "R"" #@ #?????????????#! %% | | ????????????????# """ # g #?????????????# | | ?????????????############ k##????????????# | | ?????????????# # #????????????# | | ?????????????# "" #k #????????????# | | ?????????????# "Y + " #????????????# | | ?????????????# "" # #######??????# | | ?????????????# """ # # ############### | | ?????????????# """ ####### | | ?????????????# """ #?????# | | ?????????????# #?????# | | ?????????????###########?????# ############### | | ?????????????????????????????## ##?????????????? | | ??????????????????????????????# ???????????????? | | ??????????????????????????????# ???????????????? | | ????????????????????????????? ???????????????? | | ????????????????????????????# # ???????????????? | | ????????????????????????????### < ???????????????? | | ??????????????????????????????# ???????????????? | | ??????????????????????????????####???????????????? | | ?????????????????????????????????????????????????? | | ?????????????????????????????????????????????????? | | ?????????????????????????????????????????????????? | | ?????????????????????????????????????????????????? | | ?????????????????????????????????????????????????? | +----------------------------------------------------+ Best States ------------- Heat Dissipation 25 Energy Generation 10 Energy Capacity 250 Matter Stores 300 Matter Capacity 300 Sight Range 16 Terrain Scan Density 10 Evasion (%) 62 Item Schematics ----------------- None Robot Schematics ------------------ None Fabricated ------------ Nothing Repaired ---------- Nothing Alien Tech Used ----------------- None Achievements -------------- It's Just You Challenges ------------ None Game ------ Seed ChargeImprovedKatana Manual? 0 Play Time 00:07:48 Cumulative 2.0 hours Start 2025.07.03 @ 23:21:01 End 2025.07.03 @ 23:26:52 Sessions 1 Manual Loads 0 Difficulty Rogue Special Mode None Game No. 3 Rogue 3 Adventurer 0 Explorer 0 Win Type - Total 0 Types 0/0/0/0/0/0/0/0/0/0 Lore% 0 Gallery% 7 Achievement% 8 Wizard Run 0 Options --------- Layout 0 ASCII 0 Keyboard 0 Movement Arrows Keybinds 0 Fullscreen 2 Font 18/SmallcapsGlow Map View 76x50 Zoom Use 0% Tactical HUD 0 Map Filters NONE Filters NONE Steam 0 RUN: 5424f7ea-f72b-4f39-9602-2c88dd07be39